bitfinex-derivatives/quotes_ETHF0:USTF0_20251203
["timestamp","ask_amount","ask_price","bid_price","bid_amount"]
[1764729746059,6.60571579,3033.6,3033.5,5.0304]
[1764729746259,8.63751579,3033.6,3033.5,5.0304]
[1764729747661,8.63751579,3033.6,3033.5,1.9355]
[1764729747860,8.63751579,3033.6,3033.2,3.86724511]
[1764729747861,1.9627,3033.3,3033.2,3.86724511]
[1764729748062,8.63751579,3033.6,3033.5,5.0304]
[1764729748262,3.2078,3033.6,3033.5,5.0304]
[1764729749158,5.1705,3033.6,3033.5,5.0304]
[1764729749665,3.2078,3033.6,3033.5,5.0304]
[1764729750974,0.00494511,3033.9,3033.8,3.8623]
[1764729753166,0.00494511,3033.9,3033.5,4.8941]
[1764729753167,1.7791,3033.6,3033.5,4.8941]
[1764729753574,5.0685609,3033.9,3033.8,3.726]
[1764729755569,5.869656,3033.9,3033.8,3.726]
[1764729756372,3.6284,3033.6,3033.5,4.8941]
[1764729756571,4.4294951,3033.6,3033.5,4.8941]
[1764729756758,0.8010951,3033.6,3033.5,4.8941]
[1764729757266,1.4401609,3033.9,3033.5,4.8941]
[1764729757471,4.9197609,3033.9,3033.8,1.8006]
[1764729757668,5.72065719,3033.9,3033.8,1.8006]
[1764729757973,1.6732,3033.4,3033.3,6.635]
[1764729758167,4.80891579,3033.6,3033.5,4.4415]
[1764729758366,5.60987129,3033.6,3033.5,4.4415]
[1764729758767,5.60987129,3033.6,3033.3,3.2078]
[1764729758971,3.3737,3033.4,3033.3,6.635]
[1764729759168,4.1746555,3033.4,3033.3,6.635]
[1764729759474,2.4741555,3033.4,3033.3,6.635]
[1764729759870,2.4741555,3033.4,3033.3,3.4272]
[1764729760175,0.8009555,3033.4,3033.3,3.4272]
[1764729762973,0.8009555,3033.4,3033.3,6.635]
[1764729763177,0.00494511,3033.9,3033.8,3.4272]
[1764729764673,0.00389061,3034.2,3034.1,3.4272]
[1764729765078,3.37759061,3034.2,3034.1,3.4272]
[1764729765376,0.00389061,3034.2,3034.1,3.4272]
[1764729766274,0.00494511,3034.5,3034.4,3.4272]
[1764729766479,0.00494511,3034.5,3034.0,1.17906]
[1764729766666,1.67814511,3034.5,3034.4,3.4272]
[1764729767377,1.67814511,3034.5,3034.4,3.43014643]
[1764729767378,1.68217999,3034.5,3034.4,3.43014643]
[1764729767786,0.00897999,3034.5,3034.4,3.43014643]
[1764729770775,3.38267999,3034.5,3034.4,0.00294643]
[1764729770975,4.36147999,3034.5,3034.4,0.00294643]
[1764729771482,3.3737,3033.9,3033.8,3.2078]
[1764729771680,4.80891579,3033.9,3033.8,3.2078]
[1764729772380,3.3737,3033.9,3033.8,3.21073694]
[1764729774883,3.3737,3033.9,3033.8,0.00293694]
[1764729775084,4.1707313,3033.9,3033.8,0.00293694]
[1764729775476,4.1707313,3033.9,3033.8,3.43013694]
[1764729776280,0.7970313,3033.9,3033.8,3.43013694]
[1764729777474,4.1707313,3033.9,3033.8,3.43013694]
[1764729777681,4.1707313,3033.9,3033.8,0.00293694]
[1764729778180,4.1707313,3033.9,3033.8,3.43013694]
[1764729779581,0.7970313,3033.9,3033.8,3.43013694]
[1764729779790,7.3785313,3033.9,3033.8,0.00293694]
[1764729780084,3.3737,3033.4,3033.3,6.635]
[1764729780985,3.3737,3033.4,3033.3,4.94620094]
[1764729781186,4.17109802,3033.4,3033.3,6.63790094]
[1764729781387,3.3737,3033.4,3033.3,6.63790094]
[1764729782085,4.17106458,3033.4,3033.3,6.63790094]
[1764729782488,4.17106458,3033.4,3033.3,3.43010094]
[1764729783380,2.47056458,3033.4,3033.3,3.43010094]
[1764729784688,0.79736458,3033.4,3033.3,3.43010094]
[1764729785081,0.79736458,3033.4,3033.3,6.63790094]
[1764729786790,6.4488,3033.9,3033.8,3.2678]
[1764729786988,7.2452088,3033.9,3033.8,1.6352]
[1764729787983,7.2452088,3033.9,3033.8,3.2678]
[1764729787984,4.0374088,3033.9,3033.8,3.2678]
[1764729788984,3.241,3033.6,3033.3,3.21070094]
[1764729789183,3.241,3033.4,3033.3,3.21070094]
[1764729789492,4.0374088,3033.4,3033.3,3.21070094]
[1764729791688,4.0374088,3033.4,3033.3,4.84590094]
[1764729791887,0.7964088,3033.4,3033.3,3.27070094]
[1764729792081,5.35957657,3033.9,3033.6,3.2678]
[1764729792082,3.241,3033.7,3033.6,3.2678]
[1764729792285,4.03720365,3033.7,3033.6,3.2678]
[1764729792482,3.241,3033.4,3033.3,3.27070094]
[1764729792687,4.03720365,3033.4,3033.3,3.27070094]
[1764729793195,2.40050365,3033.4,3033.3,3.27070094]
[1764729793592,4.03720365,3033.4,3033.3,3.27070094]
[1764729794497,0.79620365,3033.4,3033.3,3.27070094]
[1764729794888,2.40050365,3033.4,3033.3,3.27070094]
[1764729795089,0.79620365,3033.4,3033.3,3.27070094]
[1764729796589,4.03720365,3033.4,3033.3,3.27070094]
[1764729796993,2.40050365,3033.4,3033.3,3.27070094]
[1764729797294,4.03720365,3033.4,3033.3,3.27070094]
[1764729797598,2.40050365,3033.4,3033.3,3.27070094]
[1764729798393,4.03720365,3033.4,3033.3,0.00290094]
[1764729798786,7.24500365,3033.4,3033.2,0.00494511]
[1764729798994,4.227,3033.0,3032.9,3.2078]
[1764729799298,5.02320365,3033.0,3032.9,3.2078]
[1764729799995,5.02320365,3033.0,3032.9,3.2115817]
[1764729802006,8.23100365,3033.0,3032.9,0.0037817]
[1764729803605,7.24500365,3033.0,3032.9,3.2715817]
[1764729804008,7.24500365,3033.0,3032.9,1.6389817]
[1764729806413,7.45860365,3033.0,3032.9,0.0037817]
[1764729806816,3.241,3032.7,3032.6,0.00494511]
[1764729807006,6.18898022,3032.7,3032.6,0.00494511]
[1764729807503,6.18898022,3032.7,3032.6,1.64014511]
[1764729807700,6.18898022,3032.7,3032.6,0.00494511]
[1764729807904,6.18898022,3032.7,3032.6,0.00806621]
[1764729813130,4.03720365,3032.7,3032.6,0.00806621]
[1764729814431,6.18898022,3032.7,3032.6,0.00806621]
[1764729814626,7.96471547,3032.7,3032.6,0.00806621]
[1764729820335,7.24897937,3032.7,3032.6,0.00806621]
[1764729823838,7.24897937,3032.7,3031.8,0.16488]
[1764729823839,2.9885,3032.1,3032.0,5.9569]
[1764729824023,5.22074412,3032.1,3032.0,5.9569]
[1764729824736,5.22372829,3032.1,3032.0,5.9605825]
[1764729825532,5.22372829,3032.1,3032.0,4.9462825]
[1764729825934,5.22372829,3032.1,3032.0,5.8174825]
[1764729828833,2.9885,3031.4,3031.3,4.5814]
[1764729829034,5.22070707,3031.4,3031.3,2.8226]
[1764729829538,3.72550707,3031.4,3031.3,2.8226]
[1764729829934,3.72550707,3031.4,3031.3,2.8263275]
[1764729830127,5.22070707,3031.4,3031.3,2.8263275]
[1764729830636,3.72550707,3031.4,3031.3,2.8263275]
[1764729830942,2.23220707,3031.4,3031.3,2.8263275]
[1764729831333,5.22070707,3031.4,3031.3,2.8263275]
[1764729831535,3.72550707,3031.4,3031.3,2.8263275]
[1764729835146,5.22070707,3031.4,3031.3,2.8263275]
[1764729836048,3.72550707,3031.4,3031.3,2.8263275]
[1764729837941,2.23220707,3031.4,3031.3,2.8263275]
[1764729838949,3.72550707,3031.4,3031.3,2.8263275]
[1764729839353,5.22070707,3031.4,3031.3,1.3773275]
[1764729839748,5.22070707,3031.4,3031.3,2.8263275]
[1764729839955,3.72550707,3031.4,3031.3,2.8263275]
[1764729840145,5.22070707,3031.4,3031.3,2.8263275]
[1764729840347,2.9885,3031.0,3030.9,6.0304]
[1764729840552,4.42454047,3031.0,3030.9,6.0304]
[1764729841453,7.63234047,3031.0,3030.9,1.37651672]
[1764729841647,8.42829827,3031.0,3030.9,1.37651672]
[1764729842046,8.42829827,3031.0,3030.9,2.82551672]
[1764729842443,9.30959827,3031.0,3030.9,0.00291672]
[1764729842755,2.9885,3030.6,3030.5,3.8391]
[1764729843054,4.42454047,3030.6,3030.5,3.8391]
[1764729843354,2.92934047,3030.6,3030.5,3.5845]
[1764729843550,1.43604047,3030.6,3030.5,3.58731299]
[1764729843756,3.2078,3031.0,3030.9,2.6802]
[1764729843955,5.36212435,3031.0,3030.9,2.6802]
[1764729844155,6.79032435,3031.0,3030.9,2.6802]
[1764729844758,4.00502435,3031.0,3030.9,2.6802]
[1764729846562,6.79032435,3031.0,3030.9,2.6802]
[1764729846763,8.22636482,3031.0,3030.9,2.6802]
[1764729847653,6.79032435,3031.0,3030.9,2.6802]
[1764729848458,4.00502435,3031.0,3030.9,2.6802]
[1764729848663,8.22636482,3031.0,3030.9,2.6802]
[1764729849048,8.22636482,3031.0,3030.9,1.3005]
[1764729849253,1.3571,3030.6,3030.5,3.51421299]
[1764729849450,4.22134047,3030.6,3030.5,3.51421299]
[1764729849950,4.22134047,3030.6,3030.5,1.30331299]
[1764729850154,4.22134047,3030.6,3030.5,0.00281299]
[1764729850463,4.22294378,3030.6,3030.5,1.30331299]
[1764729850761,5.01997645,3030.6,3030.5,2.68301299]
[1764729850956,5.01997645,3030.6,3030.5,1.30331299]
[1764729851156,5.01997645,3030.6,3030.5,2.68301299]
[1764729853565,0.79703267,3030.6,3030.5,3.51421299]
[1764729854461,3.58233267,3030.6,3030.5,3.51421299]
[1764729854965,3.58247771,3030.6,3030.5,3.51421299]
[1764729855767,2.15427771,3030.6,3030.5,3.51421299]
[1764729856065,0.79717771,3030.6,3030.5,3.51421299]
[1764729856262,4.64544378,3030.9,3030.8,2.6802]
[1764729856263,3.2078,3030.9,3030.8,2.6802]
[1764729856468,4.00530231,3030.9,3030.8,2.6802]
[1764729857063,3.21274511,3031.3,3030.8,2.84514]
[1764729857262,4.56984511,3031.3,3031.2,2.6802]
[1764729857662,3.21274511,3031.3,3031.2,2.6802]
[1764729857858,0.00494511,3031.3,3031.2,2.6802]
[1764729858161,3.2078,3031.7,3031.6,2.6802]
[1764729858563,4.5649,3031.7,3031.6,2.6802]
[1764729858758,3.2078,3031.7,3031.6,2.6802]
[1764729859073,4.5649,3031.7,3031.6,2.6802]
[1764729859265,5.9931,3031.7,3031.6,2.6802]
[1764729860460,2.7853,3031.6,3031.5,2.6802]
[1764729860660,2.79474378,3031.6,3031.5,3.5114]
[1764729861373,4.22294378,3031.6,3031.5,3.5114]
[1764729863368,3.2078,3031.7,3031.6,2.6802]
[1764729863974,4.5649,3031.7,3031.6,2.6802]
[1764729865074,5.9931,3031.7,3031.6,2.6802]
[1764729865574,7.43074378,3031.7,3031.6,2.6802]
[1764729866175,7.43074378,3031.7,3031.6,1.3005]
[1764729867171,2.7853,3031.6,3031.5,1.3005]
[1764729868174,2.7853,3031.6,3031.5,3.5114]
[1764729869180,3.57893796,3031.6,3031.5,3.5114]
[1764729869578,2.7853,3031.4,3031.3,2.68514511]
[1764729869979,4.22294378,3031.4,3031.3,2.68514511]
[1764729871176,4.5649,3031.7,3031.6,2.6802]
[1764729871380,6.78666072,3031.7,3031.6,2.6802]
[1764729872680,5.35846072,3031.7,3031.6,2.6802]
[1764729873082,6.78666072,3031.7,3031.6,2.6802]
[1764729873583,4.00136072,3031.7,3031.6,2.6802]
[1764729874576,0.79356072,3031.7,3031.6,2.6802]
[1764729874787,1.23414511,3032.0,3031.9,2.599]
[1764729874975,0.79694837,3032.0,3031.9,2.599]
[1764729875483,2.5508,3031.6,3031.5,1.2768]
[1764729875683,7.98820031,3031.6,3031.5,1.2768]
[1764729875871,7.98820031,3031.6,3031.5,2.599]
[1764729876276,7.98821752,3031.6,3031.5,2.599]
[1764729876481,7.19624378,3031.6,3031.5,2.599]
[1764729876779,7.19624378,3031.6,3031.5,1.2768]
[1764729876984,7.98820389,3031.6,3031.5,2.599]
[1764729877482,7.19624378,3031.6,3031.5,3.3777]
[1764729877983,2.5508,3031.0,3030.9,2.599]
[1764729878581,2.66684378,3031.4,3031.3,1.2768]
[1764729878790,4.78057473,3031.4,3031.3,1.2768]
[1764729878990,1.2292,3031.1,3031.0,3.3777]
[1764729879183,4.78057473,3031.1,3030.5,4.04181299]
[1764729879383,0.79213095,3031.0,3030.5,4.04181299]
[1764729879586,1.2292,3030.6,3030.5,4.04181299]
[1764729879787,2.5508,3030.6,3030.5,6.64081299]
[1764729881383,2.5508,3030.6,3030.5,3.43301299]
[1764729881583,3.34321076,3030.6,3030.5,3.43301299]
[1764729881983,2.02161076,3030.6,3030.5,3.43301299]
[1764729882179,3.19271076,3030.6,3030.5,3.43301299]
[1764729882782,3.19276991,3030.6,3030.5,3.43301299]
[1764729884081,2.02166991,3030.6,3030.5,3.43301299]
[1764729884691,3.19276991,3030.6,3030.5,3.43301299]
[1764729885183,2.02166991,3030.6,3030.5,3.43301299]
[1764729885382,0.79246991,3030.6,3030.5,3.43301299]
[1764729885587,3.86944378,3030.8,3030.7,2.3274]
[1764729885778,4.66204984,3030.8,3030.7,2.3274]
[1764729888291,4.66204984,3030.8,3030.5,0.83401299]
[1764729888496,2.4318,3030.6,3030.5,1.16751299]
[1764729888694,3.22440606,3030.6,3030.5,1.16751299]
[1764729888995,3.22440606,3030.6,3030.5,2.33021299]
[1764729889390,3.22440606,3030.6,3030.5,1.16751299]
[1764729891499,3.22440606,3030.6,3030.5,0.00281299]
[1764729891894,3.22440606,3030.6,3030.5,1.16751299]
[1764729892799,3.22440606,3030.6,3030.5,2.33021299]
[1764729893192,0.79260606,3030.6,3030.5,3.03581299]
[1764729893803,2.05330606,3030.6,3030.5,3.03581299]
[1764729894102,3.22440606,3030.6,3030.5,3.03581299]
[1764729895004,2.05330606,3030.6,3030.5,3.03581299]
[1764729895204,0.79260606,3030.6,3030.5,3.03581299]
[1764729895802,2.05330606,3030.6,3030.5,3.03581299]
[1764729896103,3.22440606,3030.6,3030.5,3.03581299]
[1764729898004,2.05330606,3030.6,3030.5,3.03581299]
[1764729898207,0.79260606,3030.6,3030.5,3.03581299]
[1764729900906,3.2078,3030.8,3030.7,2.3274]
[1764729901105,4.00020447,3030.8,3030.7,2.3274]
[1764729901304,0.79240447,3030.8,3030.7,2.3274]
[1764729903202,1.1426,3031.2,3031.1,1.0902]
[1764729903408,1.1426,3031.2,3031.1,2.3289]
[1764729904101,1.43764378,3031.5,3031.1,2.3289]
[1764729904310,3.81044378,3031.5,3031.0,0.7279]
[1764729904607,1.1426,3031.1,3031.0,3.0568]
[1764729906602,2.3728,3031.0,3030.9,4.298]
[1764729906795,2.3728,3031.0,3030.9,3.2078]
[1764729906995,3.1004,3031.0,3030.9,3.2078]
[1764729907505,2.3728,3030.6,3030.5,0.00281299]
[1764729908802,1.43764378,3030.7,3030.5,0.00281299]
[1764729909001,2.3728,3030.6,3030.5,1.09301299]
[1764729909304,2.3728,3030.6,3030.5,0.00281299]
[1764729909902,1.43764378,3030.8,3029.9,3.2078]
[1764729909903,2.3728,3030.0,3029.9,3.2078]
[1764729910105,3.0374,3030.0,3029.9,3.2078]
[1764729910300,3.0374,3030.0,3029.9,4.298]
[1764729910712,2.3728,3030.0,3029.9,5.5367]
[1764729910909,2.3728,3030.0,3029.9,5.5401241]
[1764729911111,3.21274511,3030.3,3029.9,5.5401241]
[1764729911405,5.58554511,3030.3,3030.2,2.3289]
[1764729912111,4.35534511,3030.3,3030.2,2.3289]
[1764729912904,3.21274511,3030.3,3030.2,2.3289]
[1764729915215,4.0007402,3030.3,3030.2,2.3289]
[1764729915508,5.1433402,3030.3,3030.2,2.3289]
[1764729915709,2.3728,3030.1,3030.0,5.64785836]
[1764729915917,2.3728,3030.1,3030.0,5.48287836]
[1764729917014,1.1426,3030.1,3030.0,5.48287836]
[1764729917316,5.58554511,3030.3,3030.2,2.3289]
[1764729917510,7.81097021,3030.3,3030.2,1.0902]
[1764729917911,2.3728,3030.1,3030.0,4.24417836]
[1764729918105,3.81031645,3030.1,3030.0,2.42607836]
[1764729918512,4.59821766,3030.1,3030.0,2.42607836]
[1764729918708,4.59821766,3030.1,3030.0,1.0902]
[1764729919308,3.81031645,3030.1,3030.0,1.0902]
[1764729920617,4.59814234,3030.1,3030.0,1.0902]
[1764729920815,0.78782589,3030.1,3030.0,3.0568]
[1764729921022,0.00494511,3030.3,3030.2,2.3289]
[1764729921627,2.3728,3030.1,3030.0,3.0568]
[1764729921827,0.00494511,3030.3,3030.2,2.3289]
[1764729922026,0.79268597,3030.3,3030.2,2.3289]
[1764729922621,1.14754511,3030.3,3030.2,2.3289]
[1764729923126,0.00494511,3030.3,3030.2,2.3289]
[1764729925932,1.14754511,3030.3,3030.2,2.3289]
[1764729926531,0.00494511,3030.3,3030.2,2.3289]
[1764729927930,1.93525239,3030.3,3030.2,2.3289]
[1764729928930,3.16545239,3030.3,3030.2,2.3289]
[1764729930230,2.3728,3030.2,3030.1,2.42607836]
[1764729930430,2.3728,3030.2,3030.1,4.75497836]
[1764729930631,2.3728,3030.2,3030.1,2.3289]
[1764729931635,3.16058331,3030.2,3030.1,1.0902]
[1764729931834,2.3728,3030.2,3030.1,2.3289]
[1764729932030,3.16058479,3030.2,3030.1,2.3289]
[1764729932233,3.16062208,3030.2,3030.1,2.3289]
[1764729932426,2.3728,3030.2,3030.1,2.3289]
[1764729932630,3.1623679,3030.2,3030.1,2.3289]
[1764729933233,2.9929679,3030.2,3030.1,2.3289]
[1764729933733,2.0989,3030.1,3030.0,3.43327836]
[1764729933939,2.0989,3030.1,3030.0,2.42607836]
[1764729934139,2.0989,3030.1,3030.0,3.43327836]
[1764729934433,2.88881269,3030.1,3030.0,2.42607836]
[1764729934639,4.32632914,3030.1,3030.0,2.42607836]
[1764729935033,2.88881269,3030.1,3030.0,5.23647836]
[1764729935235,2.88881269,3030.1,3030.0,3.43327836]
[1764729935539,2.88881269,3030.1,3029.9,3.2112241]
[1764729935738,2.88881269,3030.0,3029.9,3.2112241]
[1764729936235,3.33271269,3030.0,3029.9,3.2112241]
[1764729936536,3.33271269,3030.0,3029.3,0.1544456]
[1764729936537,2.0989,3029.4,3029.3,0.1544456]
[1764729936740,2.88881269,3029.4,3029.3,0.1544456]
[1764729937036,2.88881269,3029.4,3029.0,3.9357]
[1764729937037,2.0989,3028.7,3028.6,3.2078]
[1764729937240,4.32632914,3028.7,3028.6,3.2078]
[1764729937743,4.33042353,3028.7,3028.6,4.21867916]
[1764729937930,4.33042353,3028.7,3028.6,4.29127916]
[1764729938132,2.10299439,3028.7,3028.6,5.34527916]
[1764729938333,2.10299439,3028.7,3028.6,4.29127916]
[1764729938837,2.10299439,3028.7,3028.6,3.21147916]
[1764729940546,2.89110539,3028.7,3028.6,0.00367916]
[1764729941238,2.00579439,3028.7,3028.6,0.00367916]
[1764729941434,3.44331084,3028.7,3028.6,1.08347916]
[1764729941637,3.44331084,3028.7,3028.6,2.13747916]
[1764729942036,3.44331084,3028.7,3028.6,1.08347916]
[1764729942237,3.44331084,3028.7,3028.6,0.00367916]
[1764729944942,2.00579439,3028.7,3028.6,2.13747916]
[1764729945147,0.99309439,3028.7,3028.6,2.13747916]
[1764729945340,3.44331084,3028.7,3028.6,2.13747916]
[1764729947244,0.99309439,3028.7,3028.6,2.13747916]
[1764729947645,2.00579439,3028.7,3028.6,0.00367916]
[1764729948038,2.00579439,3028.7,3028.6,2.13747916]
[1764729948239,0.00409439,3028.7,3028.6,2.13747916]
[1764729948545,0.00409439,3028.7,3028.6,5.34527916]
[1764729949256,0.99309439,3028.7,3028.6,5.34527916]
[1764729949449,3.44331084,3028.7,3028.6,5.34527916]
[1764729950048,2.43061084,3028.7,3028.6,5.34527916]
[1764729950350,2.43061084,3028.7,3028.6,2.13747916]
[1764729950351,3.44331084,3028.7,3028.6,2.13747916]
[1764729950948,3.44331084,3028.7,3028.6,1.08347916]
[1764729951148,1.44161084,3028.7,3028.6,2.13747916]
[1764729951355,0.00409439,3028.7,3028.6,2.13747916]
[1764729951655,0.99309439,3028.7,3028.6,2.13747916]
[1764729952054,0.00409439,3028.7,3028.6,2.13747916]
[1764729955659,0.99309439,3028.7,3028.6,2.13747916]
[1764729955963,0.00409439,3028.7,3028.6,2.13747916]
[1764729956963,0.00409439,3028.7,3028.6,5.34527916]
[1764729957450,5.2095,3029.8,3029.7,1.0798]
[1764729957655,0.989,3029.2,3029.1,5.3416]
[1764729958061,3.43921645,3029.4,3029.3,2.1338]
[1764729958257,3.43921645,3029.4,3029.1,3.2078]
[1764729958562,1.43751645,3029.2,3028.7,7.76767836]
[1764729958754,2.42651645,3029.2,3029.1,2.1338]
[1764729959062,3.43921645,3029.2,3029.1,2.1338]
[1764729959563,0.00363759,3029.4,3029.3,2.1338]
[1764729959867,4.22986823,3029.4,3029.3,1.0798]
[1764729960552,0.989,3029.1,3029.0,2.7397]
[1764729960756,2.0017,3029.1,3029.0,2.7397]
[1764729960961,0.989,3029.1,3029.0,2.7397]
[1764729961156,2.0017,3029.1,3029.0,1.6857]
[1764729961355,0.989,3029.1,3029.0,2.7397]
[1764729961557,2.42651645,3029.2,3029.1,2.1338]
[1764729961956,3.43921645,3029.2,3029.1,2.1338]
[1764729962151,4.22722643,3029.2,3029.1,2.1338]
[1764729962358,2.0017,3029.1,3028.7,3.2078]
[1764729962664,2.0017,3029.1,3029.0,2.1338]
[1764729962963,0.989,3029.1,3029.0,2.7397]
[1764729963156,1.77784602,3029.1,3029.0,2.7397]
[1764729963357,2.75784602,3029.1,3029.0,1.6857]
[1764729964165,2.75784602,3029.1,3029.0,2.7057]
[1764729964465,0.78884602,3029.1,3029.0,2.7057]
[1764729965166,0.00363759,3029.4,3029.3,2.0107]
[1764729965555,0.9357,3028.7,3028.6,4.44045752]
[1764729965763,2.37321645,3028.7,3028.6,4.44045752]
[1764729965960,1.43751645,3029.1,3029.0,2.6129]
[1764729966270,0.78998865,3029.1,3029.0,2.6129]
[1764729968061,1.91933759,3029.4,3029.3,2.0107]
[1764729968269,2.70989738,3029.4,3029.3,2.0107]
[1764729968472,0.79419738,3029.4,3029.3,2.0107]
[1764729968865,2.70989738,3029.4,3029.3,0.9907]
[1764729969558,2.70989738,3029.4,3029.3,2.0107]
[1764729969761,1.9157,3029.1,3029.0,0.6022]
[1764729969970,1.9157,3029.3,3029.2,1.02]
[1764729970171,3.16362062,3029.3,3029.2,2.0107]
[1764729970568,0.79040417,3029.3,3029.2,2.0107]
[1764729970871,4.14362062,3029.3,3029.2,2.0107]
[1764729972375,1.9157,3029.1,3029.0,1.5929]
[1764729972574,1.9157,3029.1,3029.0,2.6129]
[1764729973175,0.9357,3029.1,3029.0,2.6129]
[1764729973676,1.9157,3029.1,3029.0,2.6129]
[1764729974071,0.9357,3029.1,3029.0,2.6129]
[1764729974470,2.37812808,3029.4,3029.3,0.9907]
[1764729974672,4.1485046,3029.4,3029.3,0.9907]
[1764729975072,0.9357,3029.1,3029.0,2.6129]
[1764729975269,1.9157,3029.1,3029.0,2.6129]
[1764729975468,2.70614927,3029.1,3029.0,2.6129]
[1764729976179,1.9157,3028.9,3028.8,2.42607836]
[1764729976473,2.70614927,3028.9,3028.8,4.43677836]
[1764729976678,0.79044927,3028.9,3028.8,4.43677836]
[1764729977271,1.72614927,3028.9,3028.8,4.43677836]
[1764729977476,2.70614927,3028.9,3028.8,4.43677836]
[1764729978079,0.79044927,3028.9,3028.8,4.43677836]
[1764729978785,5.1235,3029.1,3029.0,2.6129]
[1764729978985,5.91423322,3029.1,3029.0,2.6129]
[1764729979387,5.91423322,3029.1,3029.0,1.5929]
[1764729979691,1.9157,3028.7,3028.6,2.01437916]
[1764729979885,0.79073322,3028.7,3028.6,2.01437916]
[1764729980186,1.7264439,3029.0,3028.9,2.0107]
[1764729980490,0.9357,3028.7,3028.6,2.01437916]
[1764729980682,2.7064439,3028.7,3028.6,2.01437916]
[1764729981085,2.7064439,3028.7,3028.6,0.00367916]
[1764729983084,7.35303439,3028.7,3028.6,0.00367916]
[1764729983281,3.35449049,3028.2,3028.1,5.2185]
[1764729983481,4.14514343,3028.2,3028.1,5.2185]
[1764729983683,3.35944401,3028.5,3028.4,2.0107]
[1764729983990,4.15009595,3028.5,3028.4,2.0107]
[1764729984191,4.15009595,3028.5,3028.4,0.00242422]
[1764729984383,4.15009595,3028.5,3028.4,0.99312422]
[1764729984584,4.15009595,3028.5,3028.4,2.01312422]
[1764729984779,2.71130546,3028.5,3028.4,2.01312422]
[1764729984986,1.73130546,3028.5,3028.4,2.01312422]
[1764729985288,4.15009595,3028.5,3028.4,0.00242422]
[1764729985490,4.56799595,3028.5,3028.4,0.00242422]
[1764729985988,0.9357,3027.6,3027.5,2.6166]
[1764729986392,1.9157,3027.6,3027.5,2.6166]
[1764729986787,1.9157,3027.6,3027.5,2.61899786]
[1764729986984,1.9157,3027.6,3027.5,0.00239786]
[1764729987182,2.70553724,3027.6,3027.5,0.00239786]
[1764729987490,2.70553724,3027.6,3027.5,0.99309786]
[1764729988295,2.70553724,3027.6,3027.5,2.61529786]
[1764729988698,0.78983724,3027.6,3027.5,2.61529786]
[1764729988894,1.9157,3027.6,3027.5,0.00239786]
[1764729989192,4.14315633,3027.6,3026.9,3.2078]
[1764729989395,0.4439,3026.0,3024.7,5.81455344]
[1764729989691,0.4439,3026.0,3023.0,0.6022]
[1764729989692,3.301,3025.3,3023.2,4.26849275]
[1764729989889,1.43879049,3024.0,3023.3,6.77931348]
[1764729990093,41.58854415,3023.9,3022.4,5.601]
[1764729990299,45.02599162,3023.9,3023.8,2.0107]
[1764729990487,5.39279973,3023.9,3023.8,10.2816117]
[1764729990689,2.94228718,3025.0,3023.8,10.2816117]
[1764729990690,2.35546397,3024.7,3024.6,0.6022]
[1764729990896,1.16310203,3024.7,3024.6,0.6022]
[1764729991088,1.16310203,3024.7,3024.6,10.8785]
[1764729991597,1.11072587,3024.7,3024.6,16.8785]
[1764729991895,2.35546397,3026.0,3025.8,0.6022]
[1764729992099,2.35546397,3026.4,3025.8,0.6022]
[1764729992305,2.35546397,3026.2,3025.9,8.2608]
[1764729992593,2.94228718,3026.2,3025.9,8.2608]
[1764729992798,2.94228718,3026.2,3025.8,0.6022]
[1764729992799,2.94228718,3026.3,3026.1,0.9907]
[1764729992997,0.00316445,3026.3,3026.2,1.9422]
[1764729993192,2.35071515,3026.3,3026.2,10.203]
[1764729993390,2.94228718,3027.1,3027.0,0.5889]
[1764729993591,2.4555895,3027.2,3026.4,0.5889]
[1764729993787,2.4555895,3027.2,3026.5,8.26]
[1764729993990,4.08023617,3027.8,3026.5,8.26]
[1764729994192,2.4555895,3028.0,3026.6,8.2592]
[1764729994388,0.00496178,3027.6,3026.5,8.2584]
[1764729994694,2.4555895,3027.5,3027.0,0.5889]
[1764729994899,0.00496178,3027.6,3027.0,0.5889]
[1764729995100,0.00496178,3027.6,3027.1,8.2584]
[1764729995585,0.00496178,3027.6,3027.2,8.2584]
[1764729995788,0.00496178,3027.6,3027.1,8.2584]
[1764729996200,0.00496178,3027.6,3027.2,8.2584]
[1764729996498,0.00496178,3027.6,3027.1,8.2584]
[1764729996900,0.00496178,3027.6,3027.2,8.2584]
[1764729997098,0.00496178,3027.6,3027.1,8.2584]
[1764729997494,0.00496178,3027.6,3027.2,8.2584]
[1764729997692,0.00496178,3027.6,3027.0,0.5889]
[1764729997693,0.00496178,3027.6,3027.1,8.2584]
[1764729998099,0.00496178,3027.6,3027.2,8.2584]
[1764729998292,0.00496178,3027.6,3027.1,8.2584]
[1764729998492,3.2078,3027.2,3027.1,8.2584]
[1764729999191,3.2078,3027.2,3027.1,14.1935]
[1764729999601,3.2078,3027.2,3027.1,8.2584]
[1764730000495,3.2078,3027.2,3027.1,14.1935]
[1764730000893,3.2078,3027.2,3027.1,11.51753902]
[1764730003897,4.34918797,3027.2,3027.1,11.51753902]
[1764730004591,3.21276178,3027.6,3027.3,10.3894]
[1764730004796,0.00496178,3027.6,3027.5,22.55372146]
[1764730005201,0.00496178,3027.6,3027.5,19.34592146]
[1764730006611,0.00496178,3027.6,3027.5,14.29702146]
[1764730006806,5.53696178,3027.6,3027.5,14.29702146]
[1764730007008,3.21276178,3027.6,3027.5,14.29702146]
[1764730007602,3.21276178,3027.6,3027.5,19.34592146]
[1764730008906,0.00496178,3027.6,3027.5,19.34592146]
[1764730010005,0.00496178,3027.6,3027.5,33.00592146]
[1764730010410,0.00496178,3027.6,3027.5,33.00292146]
[1764730010800,0.00496178,3027.6,3027.5,28.54352893]
[1764730013807,0.00496178,3027.6,3027.5,28.52452893]
[1764730014112,0.00496178,3027.6,3027.5,14.88652893]
[1764730014312,0.00496178,3027.6,3027.5,28.52352893]
[1764730014711,10.22306178,3027.6,3027.5,5.91912146]
[1764730014910,5.3014,3027.0,3026.9,10.4365]
[1764730015116,2.35775566,3027.0,3026.9,15.4854]
[1764730015307,2.94719458,3027.3,3027.0,3.0374]
[1764730016208,10.2181,3027.1,3027.0,3.0374]
[1764730016417,10.2181,3027.0,3026.9,11.303]
[1764730016611,11.25869561,3027.0,3026.9,11.303]
[1764730017014,1.04059561,3027.0,3026.9,21.6924]
[1764730017605,3.39968481,3027.0,3026.9,21.6924]
[1764730017805,16.92208511,3027.0,3026.6,16.8308]